bitfinex-derivatives/quotes_SOLF0:USTF0_20251023
["timestamp","ask_amount","ask_price","bid_price","bid_amount"]
[1761234706624,9.4300771,191.56,191.5,2.62]
[1761234708727,11.0300771,191.56,191.5,2.62]
[1761234709228,55.0700771,191.56,191.5,2.62]
[1761234709429,50.3375,191.56,191.5,2.62]
[1761234711133,8.69335837,191.58,191.51,2.62]
[1761234711432,1.6,191.56,191.41,2.62]
[1761234711634,6.33209026,191.56,191.43,2.62]
[1761234711931,6.33209026,191.56,191.45,2.62]
[1761234712123,1.6,191.55,191.46,7.26036239]
[1761234712327,6.2977,191.55,191.49,4.6988]
[1761234712536,1.6,191.54,191.5,4.64036239]
[1761234712735,1.74513518,191.53,191.49,7.3188]
[1761234713035,1.74513518,191.53,191.5,4.64445863]
[1761234713231,1.74513518,191.53,191.49,7.3188]
[1761234713430,1.74513518,191.53,191.5,4.62369932]
[1761234713632,1.74513518,191.53,191.5,2.62]
[1761234714734,1.74513518,191.53,191.52,2.62]
[1761234715326,6.47876384,191.55,191.52,2.62]
[1761234715532,1.74513518,191.55,191.52,2.62]
[1761234716229,1.74513518,191.55,191.53,4.63073742]
[1761234716538,1.74513518,191.55,191.54,4.63052859]
[1761234717738,1.74513518,191.56,191.55,2.62]
[1761234717939,1.74513518,191.56,191.55,7.25052859]
[1761234718129,1.74513518,191.57,191.55,7.25052859]
[1761234718329,1.74513518,191.57,191.56,4.635702]
[1761234718531,1.74513518,191.57,191.56,7.255702]
[1761234720037,4.73798835,191.6,191.57,2.81]
[1761234720237,1.74513518,191.61,191.58,7.445702]
[1761234720539,1.74513518,191.61,191.59,4.635702]
[1761234720745,1.74513518,191.61,191.58,2.81]
[1761234720926,1.74513518,191.61,191.59,4.63560783]
[1761234721130,1.74513518,191.61,191.58,2.81]
[1761234721340,1.74513518,191.61,191.59,4.63560783]
[1761234721640,1.74513518,191.61,191.58,2.81]
[1761234721837,1.74513518,191.59,191.52,2.81]
[1761234722038,1.6,191.58,191.53,4.63797083]
[1761234722245,1.6,191.56,191.44,2.81]
[1761234722438,1.6,191.55,191.45,7.45161199]
[1761234722735,4.698,191.54,191.47,4.6993]
[1761234722941,4.698,191.54,191.48,4.64161199]
[1761234723130,6.298,191.54,191.49,4.64161199]
[1761234723334,1.6,191.53,191.5,4.64161199]
[1761234723534,1.6,191.53,191.47,4.6993]
[1761234723535,1.6,191.53,191.51,4.64161199]
[1761234723734,1.6,191.53,191.52,4.64161199]
[1761234724127,9.43598835,191.54,191.52,4.64161199]
[1761234724332,9.43598835,191.54,191.48,4.6991]
[1761234724528,6.33798835,191.54,191.49,7.45278639]
[1761234724732,1.6,191.54,191.5,4.64278639]
[1761234724932,1.6,191.54,191.49,2.81]
[1761234724933,8.73832202,191.55,191.51,4.64278639]
[1761234725133,4.73798835,191.54,191.52,4.64278639]
[1761234725440,4.73798835,191.54,191.53,4.64483934]
[1761234725638,6.33798835,191.54,191.46,4.6997]
[1761234725941,6.33798835,191.54,191.47,2.81]
[1761234726142,4.00033367,191.55,191.51,2.81]
[1761234726331,4.73798835,191.56,191.51,2.81]
[1761234726536,4.73798835,191.58,191.51,2.81]
[1761234726732,4.73798835,191.58,191.45,4.76339603]
[1761234726733,4.73798835,191.57,191.54,2.81]
[1761234726934,4.73798835,191.58,191.54,2.81]
[1761234727138,4.73798835,191.59,191.54,2.81]
[1761234727337,4.73798835,191.59,191.5,2.81]
[1761234727844,4.73798835,191.59,191.56,2.81]
[1761234728445,4.73798835,191.63,191.58,4.6966]
[1761234728745,4.73798835,191.65,191.59,2.81]
[1761234728940,1.6,191.63,191.59,2.81]
[1761234729241,4.73798835,191.62,191.59,2.81]
[1761234730541,4.73798835,191.63,191.59,2.81]
[1761234730836,1.6,191.61,191.51,2.81]
[1761234731041,1.6,191.58,191.51,2.81]
[1761234731238,4.73798835,191.57,191.51,2.81]
[1761234731443,6.33798835,191.58,191.51,2.81]
[1761234731747,4.73798835,191.57,191.51,2.81]
[1761234731943,4.73798835,191.57,191.51,7.5083]
[1761234732341,4.73798835,191.57,191.51,2.81]
[1761234732849,4.73798835,191.57,191.52,7.5081]
[1761234733147,6.33798835,191.56,191.48,7.57339603]
[1761234733344,4.73798835,191.55,191.48,2.81]
[1761234733847,9.43548835,191.55,191.48,2.81]
[1761234734248,4.73798835,191.54,191.48,2.81]
[1761234734845,4.00033367,191.55,191.49,2.81]
[1761234734846,4.73798835,191.53,191.49,2.81]
[1761234735047,4.73798835,191.54,191.49,2.81]
[1761234735741,4.85847115,191.65,191.52,2.81]
[1761234735944,4.00033367,191.62,191.53,2.81]
[1761234736140,2.74,191.6,191.49,2.81]
[1761234736748,2.74,191.6,191.5,2.81]
[1761234737248,7.4365,191.6,191.5,2.81]
[1761234737445,7.4365,191.6,191.51,2.81]
[1761234738043,4.6967,191.59,191.51,2.81]
[1761234738241,4.6967,191.59,191.48,6.24255146]
[1761234738242,2.74,191.59,191.48,4.76339603]
[1761234738546,2.74,191.56,191.49,4.71112796]
[1761234738748,7.4379,191.54,191.5,4.71112796]
[1761234738946,7.4379,191.54,191.51,4.71112796]
[1761234739146,2.74,191.53,191.52,4.71112796]
[1761234739543,2.74,191.53,191.43,7.57339603]
[1761234739748,2.74,191.49,191.44,4.71887846]
[1761234739947,46.76,191.48,191.38,2.81]
[1761234740143,2.74,191.48,191.38,2.81]
[1761234740349,44.02,191.49,191.39,2.81]
[1761234740643,4.6993,191.48,191.39,7.5114]
[1761234741043,4.6993,191.48,191.4,2.81]
[1761234742347,44.02,191.49,191.4,2.81]
[1761234743159,50.60101335,191.5,191.4,2.81]
[1761234743456,50.60101335,191.5,191.42,2.81]
[1761234743457,2.74,191.5,191.42,2.81]
[1761234744054,4.6985,191.52,191.44,2.81]
[1761234745047,2.74,191.51,191.4,7.511]
[1761234745250,2.74,191.51,191.41,2.81]
[1761234746060,2.74,191.51,191.42,4.7007]
[1761234746555,2.74,191.51,191.42,7.5407]
[1761234747148,2.74,191.51,191.43,7.5402]
[1761234749450,2.74,191.51,191.44,4.7]
[1761234750158,44.02,191.53,191.47,2.63]
[1761234750353,9.42101335,191.54,191.47,2.63]
[1761234750549,46.86,191.54,191.47,2.63]
[1761234750855,4.6973,191.56,191.37,6.24255146]
[1761234750856,44.02,191.56,191.48,7.3292]
[1761234751260,2.84,191.55,191.48,7.3292]
[1761234752552,46.86,191.55,191.48,7.3292]
[1761234752752,44.02,191.55,191.48,7.3292]
[1761234752957,2.84,191.54,191.48,4.6992]
[1761234759159,2.84,191.54,191.47,2.63]
[1761234760061,2.84,191.54,191.47,7.3293]
[1761234760461,2.84,191.54,191.47,2.63]
[1761234761963,2.84,191.54,191.48,2.63]
[1761234762163,44.02,191.56,191.48,2.63]
[1761234762357,4.6971,191.57,191.48,2.63]
[1761234762566,48.7171,191.57,191.48,2.63]
[1761234762864,51.5571,191.57,191.5,4.6986]
[1761234763061,51.5571,191.57,191.48,2.63]
[1761234763863,51.5571,191.57,191.49,4.6989]
[1761234764064,51.5571,191.57,191.49,7.3289]
[1761234764266,51.5571,191.57,191.5,2.63]
[1761234764665,2.72649219,191.56,191.5,2.63]
[1761234765363,7.5371,191.57,191.5,2.63]
[1761234765554,54.28359219,191.57,191.51,2.63]
[1761234767168,5.56649219,191.54,191.5,4.6986]
[1761234767573,5.56649219,191.54,191.48,2.63]
[1761234767778,2.84,191.53,191.48,4.6992]
[1761234767976,2.84,191.53,191.48,7.3292]
[1761234769683,2.84,191.5,191.43,2.63]
[1761234769873,5.56649219,191.48,191.43,2.63]
[1761234770182,2.84,191.47,191.43,7.3304]
[1761234770375,2.72649219,191.48,191.44,2.63]
[1761234770575,2.72649219,191.51,191.44,2.63]
[1761234770876,2.72649219,191.51,191.38,2.72649219]
[1761234770877,2.72649219,191.51,191.48,2.63]
[1761234771073,2.72649219,191.51,191.44,2.63]
[1761234771074,5.56649219,191.51,191.44,2.63]
[1761234771669,2.84,191.5,191.44,2.63]
[1761234771871,5.56649219,191.48,191.44,2.63]
[1761234772280,5.56649219,191.48,191.44,7.3301]
[1761234773483,2.72649219,191.48,191.44,4.7001]
[1761234773680,2.72649219,191.49,191.45,2.63]
[1761234774387,2.72649219,191.49,191.45,7.3299]
[1761234774684,5.56649219,191.49,191.45,4.6999]
[1761234775183,5.56649219,191.49,191.45,7.3299]
[1761234775686,2.72649219,191.49,191.46,2.63]
[1761234776186,2.84,191.48,191.45,4.6999]
[1761234776784,2.72649219,191.49,191.45,7.3299]
[1761234776979,5.56649219,191.49,191.45,7.3299]
[1761234777382,2.72649219,191.49,191.46,2.63]
[1761234777882,2.72649219,191.49,191.45,4.6999]
[1761234778080,10.26559219,191.49,191.43,4.7003]
[1761234779685,2.72649219,191.46,191.39,7.42339603]
[1761234779883,5.57649219,191.46,191.39,2.66]
[1761234780482,4.7001,191.45,191.39,7.3613]
[1761234782588,4.7001,191.45,191.39,4.7013]
[1761234782788,5.57649219,191.46,191.4,2.66]
[1761234783086,5.57649219,191.49,191.4,2.66]
[1761234784088,4.6994,191.48,191.42,4.7006]
[1761234784786,7.5496,191.47,191.42,7.3606]
[1761234785196,7.5496,191.47,191.43,2.66]
[1761234786183,4.6996,191.47,191.42,4.7006]
[1761234786492,10.27559219,191.49,191.42,4.7006]
[1761234787399,2.85,191.53,191.41,2.66]
[1761234787599,7.58496334,191.54,191.43,4.76339603]
[1761234787600,2.72649219,191.54,191.43,4.76339603]
[1761234787896,2.72649219,191.54,191.44,2.66]
[1761234788092,2.72649219,191.54,191.49,4.6988]
[1761234788293,5.57649219,191.57,191.5,2.66]
[1761234788696,5.57649219,191.62,191.53,2.66]
[1761234788893,2.72649219,191.64,191.53,2.66]
[1761234789095,5.57649219,191.66,191.54,2.66]
[1761234789290,5.57649219,191.66,191.57,2.66]
[1761234790196,2.85,191.65,191.57,2.66]
[1761234790902,2.85,191.65,191.57,7.3568]
[1761234791099,4.6948,191.67,191.53,2.66]
[1761234791289,4.6948,191.67,191.54,2.66]
[1761234791493,7.5442,191.69,191.59,2.66]
[1761234791804,2.85,191.69,191.59,2.66]
[1761234792298,2.85,191.73,191.63,4.6954]
[1761234792497,2.85,191.73,191.64,2.66]
[1761234793099,2.85,191.73,191.65,7.355]
[1761234793301,2.85,191.73,191.66,2.66]
[1761234793499,46.83,191.78,191.66,2.66]
[1761234793698,46.83,191.78,191.7,2.66]
[1761234794300,46.83,191.78,191.71,2.66]
[1761234794507,43.98,191.78,191.71,2.66]
[1761234795009,4.85847115,191.89,191.72,7.3533]
[1761234795010,2.85,191.84,191.72,7.3533]
[1761234795302,2.85,191.84,191.76,4.6923]
[1761234795498,2.85,191.84,191.77,2.66]
[1761234796106,2.85,191.84,191.72,2.66]
[1761234796999,2.85,191.78,191.66,2.66]
[1761234798211,2.85,191.76,191.67,2.66]
[1761234799405,2.85,191.74,191.63,107.12863162]
[1761234799611,2.85,191.74,191.64,2.66]
[1761234800604,2.85,191.72,191.64,2.66]
[1761234800911,2.85,191.7,191.63,104.46863162]
[1761234801100,2.85,191.68,191.59,2.66]
[1761234801604,4.35345012,191.67,191.59,2.66]
[1761234801812,4.35345012,191.67,191.55,2.66]
[1761234801813,2.85,191.66,191.55,2.66]
[1761234802609,4.6952,191.65,191.55,2.66]
[1761234802809,2.85,191.66,191.55,2.66]
[1761234803005,2.85,191.66,191.57,2.66]
[1761234803210,2.85,191.66,191.58,4.6141863]
[1761234803413,2.85,191.66,191.57,2.66]
[1761234803607,2.85,191.66,191.58,4.61362088]
[1761234803808,2.85,191.66,191.57,2.66]
[1761234804202,4.6944,191.68,191.59,2.66]
[1761234804810,2.85,191.67,191.59,2.66]
[1761234805711,7.5448,191.67,191.59,2.66]
[1761234805914,2.6,191.66,191.55,7.4173]
[1761234806115,2.6,191.66,191.56,4.61491106]
[1761234806317,2.6,191.66,191.55,7.4173]
[1761234806613,2.6,191.66,191.56,4.61496605]
[1761234806817,2.6,191.66,191.55,7.4173]
[1761234807008,2.6,191.65,191.56,4.61559444]
[1761234807316,2.6,191.65,191.55,7.4173]
[1761234807514,2.6,191.65,191.56,4.61554657]
[1761234807716,2.6,191.65,191.55,7.4173]
[1761234807915,6.95345012,191.7,191.58,2.72]
[1761234808120,2.6,191.7,191.59,4.61406851]
[1761234808314,4.6939,191.7,191.58,2.72]
[1761234808519,2.6,191.69,191.59,9.30996128]
[1761234808818,2.6,191.69,191.58,2.72]
[1761234809208,42.06,191.71,191.59,4.61161123]
[1761234809405,42.06,191.71,191.61,2.82]
[1761234809604,42.06,191.71,191.63,2.82]
[1761234809808,42.06,191.71,191.58,4.35345012]
[1761234809809,42.06,191.71,191.64,2.82]
[1761234810010,2.86,191.73,191.64,2.82]
[1761234810220,2.86,191.73,191.66,2.82]
[1761234812922,2.86,191.73,191.62,4.35345012]
[1761234812923,4.6924,191.76,191.67,2.82]
[1761234813415,7.5519,191.78,191.7,4.6938]
[1761234814420,7.5519,191.78,191.7,7.5138]
[1761234814722,2.86,191.78,191.7,7.5138]
[1761234815119,48.29345012,191.84,191.72,7.5132]
[1761234815120,4.6912,191.81,191.72,7.5132]
[1761234815310,2.86,191.81,191.72,7.5132]
[1761234815715,2.86,191.81,191.73,4.6929]
[1761234815911,2.86,191.81,191.74,2.82]
[1761234816112,43.94,191.84,191.74,2.82]
[1761234816420,43.94,191.84,191.76,4.6923]
[1761234816724,43.94,191.84,191.74,2.82]
[1761234816920,43.94,191.84,191.78,4.6917]
[1761234817728,2.86,191.86,191.78,7.5117]
[1761234818221,4.81118415,192.01,191.81,2.82]
[1761234818416,6.34439015,192.04,191.81,4.35345012]
[1761234818417,2.86,191.96,191.81,4.35345012]
[1761234818611,2.86,191.96,191.82,2.82]
[1761234819422,2.86,191.95,191.82,2.82]
[1761234819720,2.86,191.91,191.78,2.82]
[1761234819923,2.86,191.87,191.72,2.82]
[1761234820217,2.86,191.87,191.74,2.82]
[1761234820414,2.86,191.87,191.76,2.82]
[1761234822829,2.86,191.91,191.78,2.82]
[1761234823323,2.86,191.91,191.8,2.82]
[1761234826227,4.35345012,191.92,191.78,4.6917]
[1761234826228,2.86,191.86,191.78,4.6917]
[1761234826824,2.86,191.86,191.78,7.5117]
[1761234827023,4.6902,191.85,191.78,2.82]
[1761234828219,4.6902,191.85,191.79,4.59604534]
[1761234828421,4.6902,191.85,191.78,2.82]
[1761234828726,2.86,191.86,191.79,4.59604534]
[1761234828929,2.86,191.86,191.78,2.82]
[1761234829127,2.86,191.86,191.79,4.59629549]
[1761234829327,2.86,191.86,191.78,2.82]
[1761234829631,2.86,191.86,191.79,4.59959883]
[1761234829928,2.86,191.86,191.78,2.82]
[1761234830234,2.86,191.86,191.79,4.59959929]
[1761234830416,2.86,191.86,191.78,2.82]
[1761234830730,2.86,191.86,191.79,4.60445026]
[1761234830923,2.86,191.86,191.78,2.82]
[1761234831129,7.5501,191.86,191.79,4.60444882]
[1761234831321,7.5501,191.86,191.8,4.60444882]
[1761234831522,7.5501,191.86,191.78,2.82]
[1761234831722,7.5501,191.86,191.79,4.6086972]
[1761234831920,7.5501,191.86,191.8,4.6086972]
[1761234832126,4.6894,191.88,191.81,7.42813597]
[1761234832422,4.6894,191.88,191.82,4.60813597]
[1761234832624,7.5494,191.88,191.83,4.60813597]
[1761234832826,7.5494,191.88,191.81,2.82]
[1761234834428,4.6894,191.88,191.81,2.82]
[1761234834637,2.86,191.86,191.76,2.82]
[1761234835232,2.86,191.86,191.79,2.82]
[1761234835233,7.55,191.86,191.79,2.82]
[1761234836129,2.86,191.86,191.79,2.82]
[1761234836335,4.35345012,191.9,191.8,2.82]
[1761234836336,2.86,191.9,191.8,2.82]
[1761234838031,4.6899,191.87,191.8,2.82]
[1761234838739,2.86,191.88,191.77,7.402]
[1761234838929,2.86,191.88,191.78,2.71]
[1761234839131,4.6899,191.87,191.78,4.6917]
[1761234839326,9.09552187,191.87,191.78,2.71]
[1761234839527,4.6899,191.87,191.78,2.71]
[1761234839725,7.5101,191.86,191.79,4.6915]
[1761234839927,2.82,191.88,191.78,2.71]
[1761234840336,4.35345012,191.89,191.78,2.71]
[1761234840337,2.82,191.84,191.78,2.71]
[1761234840727,2.82,191.84,191.72,4.35345012]
[1761234840728,2.82,191.84,191.73,2.71]
[1761234840923,4.691,191.82,191.75,4.6926]
[1761234841338,4.691,191.82,191.75,7.4026]
[1761234841536,2.82,191.81,191.71,2.71]
[1761234842035,4.6921,191.78,191.71,2.71]
[1761234842232,2.82,191.78,191.71,2.71]
[1761234842438,2.82,191.78,191.66,108.27722448]
[1761234843038,4.6936,191.72,191.66,108.27722448]
[1761234843231,4.6936,191.72,191.66,2.71]
[1761234843430,2.82,191.72,191.58,2.71]
[1761234844935,4.6946,191.67,191.58,2.71]
[1761234845941,4.35345012,191.71,191.58,2.71]
[1761234845942,2.82,191.7,191.58,2.71]
[1761234846642,4.41000528,191.73,191.59,2.71]
[1761234846832,2.82,191.74,191.6,2.71]
[1761234847139,4.35345012,191.77,191.66,2.71]
[1761234847333,23.18,191.78,191.66,2.71]
[1761234847535,20.36,191.78,191.66,2.71]
[1761234847742,4.6924,191.76,191.67,4.6944]
[1761234847933,4.6924,191.76,191.67,7.4044]
[1761234848440,4.6929,191.74,191.67,2.71]
[1761234848644,7.5129,191.74,191.67,2.71]
[1761234849641,4.6929,191.74,191.67,2.71]
[1761234850442,7.5133,191.73,191.6,2.71]
[1761234850643,7.5133,191.73,191.64,2.71]
[1761234851938,2.82,191.76,191.64,2.71]
[1761234852236,2.82,191.75,191.6,2.71]
[1761234852641,4.6938,191.71,191.6,2.71]
[1761234852843,7.5138,191.71,191.6,2.71]
[1761234853140,7.5138,191.71,191.6,4.6961]
[1761234853348,7.5131,191.74,191.61,2.71]
[1761234853838,7.5133,191.73,191.64,4.6953]
[1761234854034,20.36,191.78,191.56,2.71]
[1761234854035,2.82,191.69,191.56,2.71]
[1761234854542,4.6953,191.65,191.56,2.71]
[1761234855542,7.5153,191.65,191.56,2.71]
[1761234855738,4.6956,191.63,191.56,2.71]
[1761234855944,2.82,191.63,191.51,2.71]
[1761234856341,2.82,191.62,191.51,7.4085]
[1761234857833,2.82,191.62,191.43,4.78699841]
[1761234857834,2.82,191.59,191.43,2.71]
[1761234858036,2.82,191.57,191.43,2.71]
[1761234858742,2.82,191.56,191.43,2.71]
[1761234858943,2.82,191.55,191.35,2.71]
[1761234859139,6.58623481,191.53,191.35,2.71]
[1761234859341,2.82,191.52,191.35,2.71]
[1761234859545,2.82,191.5,191.39,2.71]
[1761234860146,6.58623481,191.52,191.34,3.61804718]
[1761234860449,2.82,191.47,191.34,2.71]
[1761234862152,2.82,191.47,191.35,2.71]
[1761234863049,2.82,191.47,191.37,2.71]
[1761234864149,73.0499,191.62,191.37,2.71]
[1761234864354,2.82,191.57,191.37,2.71]
[1761234865854,4.6985,191.52,191.42,2.71]
[1761234866154,2.82,191.54,191.42,2.71]
[1761234867047,2.82,191.54,191.43,7.5305]
[1761234867456,2.82,191.54,191.43,2.83]
[1761234867853,6.58623481,191.58,191.4,4.701]
[1761234867854,2.65,191.5,191.4,4.701]
[1761234868049,2.65,191.5,191.4,7.531]
[1761234868251,2.65,191.5,191.41,2.83]
[1761234868456,4.699,191.49,191.41,2.83]
[1761234868648,7.349,191.49,191.41,2.83]
[1761234870258,4.6995,191.47,191.36,2.66]
[1761234870553,7.2895,191.47,191.36,2.66]
[1761234870753,2.59,191.47,191.36,2.66]
[1761234871550,2.59,191.47,191.37,4.7018]
[1761234871751,2.59,191.47,191.38,2.66]
[1761234877559,2.59,191.47,191.27,2.66]
[1761234877560,2.59,191.44,191.27,2.66]
[1761234877860,2.59,191.41,191.27,2.66]
[1761234878062,4.7022,191.36,191.27,2.66]
[1761234878359,2.59,191.37,191.27,2.66]
[1761234878857,7.2922,191.37,191.27,7.3642]
[1761234879253,15.65,191.45,191.27,2.66]
[1761234879254,2.59,191.36,191.27,2.66]
[1761234879457,7.2927,191.35,191.27,2.66]
[1761234879759,2.59,191.4,191.27,2.66]
[1761234881556,4.7024,191.36,191.27,7.3642]
[1761234882160,15.65,191.45,191.29,4.7039]
[1761234882161,7.2917,191.38,191.29,4.7039]
[1761234882459,7.2917,191.38,191.29,7.3639]
[1761234882757,2.59,191.37,191.29,7.3639]
[1761234883361,4.7022,191.36,191.29,7.3639]
[1761234884351,4.7017,191.38,191.31,2.66]
[1761234886757,4.7013,191.4,191.31,2.66]
[1761234887158,2.59,191.41,191.28,2.66]
[1761234887363,4.7007,191.43,191.28,2.66]
[1761234888064,7.2907,191.43,191.28,2.66]
[1761234888967,7.2899,191.46,191.28,2.66]
[1761234889152,7.2899,191.46,191.32,2.66]
[1761234889352,7.2899,191.46,191.37,4.7019]
[1761234889563,7.2899,191.46,191.37,2.66]
[1761234890258,2.59,191.46,191.32,2.66]
[1761234890466,2.59,191.49,191.32,2.66]
[1761234890852,2.59,191.49,191.36,2.66]
[1761234891053,2.59,191.49,191.38,2.66]
[1761234892062,2.59,191.49,191.4,7.361]
[1761234892266,2.59,191.49,191.41,2.66]
[1761234892569,7.2883,191.52,191.43,7.3605]
[1761234896769,4.6987,191.51,191.43,7.3605]
[1761234896974,2.59,191.5,191.41,4.7009]
[1761234897174,2.59,191.5,191.41,2.66]
[1761234897972,2.59,191.54,191.4,4.7011]
[1761234898169,2.59,191.53,191.4,4.7011]
[1761234898967,4.34851257,191.55,191.4,4.7011]
[1761234898968,4.6994,191.48,191.4,4.7011]
[1761234899275,4.6994,191.48,191.4,7.5111]
[1761234899468,9.04791257,191.48,191.4,7.5111]
[1761234899975,11.78791257,191.48,191.4,7.5111]
[1761234900171,7.11142674,191.47,191.38,4.7016]
[1761234900469,2.74,191.46,191.36,2.81]
[1761234901074,4.7009,191.42,191.36,2.81]
[1761234901273,4.37142674,191.47,191.36,2.81]
[1761234901476,2.74,191.49,191.36,2.81]
[1761234902176,2.74,191.49,191.39,4.7013]
[1761234902371,2.74,191.49,191.39,2.81]
[1761234903178,2.74,191.48,191.39,2.81]
[1761234903371,7.11142674,191.48,191.39,2.81]
[1761234903778,4.37142674,191.48,191.43,2.81]
[1761234904479,4.6991,191.49,191.43,2.81]
[1761234905075,7.4391,191.49,191.43,2.81]
[1761234905273,4.3800261,191.48,191.43,2.81]
[1761234906266,4.3800261,191.48,191.43,4.7003]
[1761234906474,2.74,191.53,191.44,2.81]
[1761234907982,4.6989,191.5,191.44,7.5101]
[1761234913180,2.74,191.58,191.46,2.81]
[1761234913379,2.74,191.57,191.46,2.81]
[1761234914071,2.74,191.57,191.47,2.81]
[1761234914272,2.74,191.63,191.47,2.81]
[1761234914983,7.4361,191.61,191.53,4.6978]
[1761234915183,2.74,191.6,191.53,4.6978]
[1761234915883,2.74,191.6,191.52,2.81]
[1761234915884,2.74,191.6,191.54,4.6976]
[1761234916089,4.6955,191.64,191.48,2.81]
[1761234916380,2.74,191.65,191.49,2.81]
[1761234916884,2.74,191.65,191.52,2.81]
[1761234917073,2.74,191.65,191.49,4.78699841]
[1761234917074,2.74,191.65,191.54,2.81]
[1761234917274,2.74,191.65,191.56,2.81]
[1761234917584,2.74,191.65,191.57,7.48491474]
[1761234917784,2.74,191.65,191.51,6.58623481]
[1761234917785,2.74,191.65,191.58,7.48491474]
[1761234917992,2.74,191.65,191.59,4.67491474]
[1761234918179,2.74,191.65,191.58,2.81]
[1761234918380,2.74,191.65,191.59,9.36279348]
[1761234918580,2.74,191.65,191.59,4.6964]
[1761234919783,7.4353,191.64,191.53,2.81]
[1761234920087,15.90666452,191.73,191.5,3.99434294]
[1761234920088,2.74,191.63,191.54,4.6649616]
[1761234920287,4.696,191.62,191.51,7.5083]
[1761234920474,2.74,191.61,191.52,4.66532182]
[1761234920674,2.74,191.61,191.53,4.66532182]
[1761234920977,2.74,191.61,191.54,4.66532182]
[1761234921186,2.74,191.59,191.52,4.6981]
[1761234921387,2.74,191.59,191.53,4.66768366]
[1761234921584,2.74,191.59,191.54,4.66768366]
[1761234921783,2.74,191.59,191.52,4.6981]
[1761234921980,2.74,191.59,191.53,4.66840783]
[1761234922180,2.74,191.59,191.54,4.66840783]
[1761234922380,2.74,191.59,191.52,4.6981]
[1761234922588,2.74,191.59,191.53,4.66705889]
[1761234922789,2.74,191.59,191.52,4.6981]
[1761234925987,2.74,191.59,191.53,2.82]
[1761234926787,2.74,191.59,191.52,4.6981]
[1761234926788,2.68,191.59,191.52,2.82]
[1761234927186,1.74391936,191.58,191.52,2.82]
[1761234929698,1.74391936,191.58,191.52,7.5181]
[1761234930998,1.74391936,191.56,191.44,2.69]
[1761234931200,2.75,191.56,191.47,2.69]
[1761234931393,4.49391936,191.56,191.47,2.69]
[1761234931987,4.49391936,191.56,191.49,4.6989]
[1761234932191,1.74391936,191.54,191.47,2.69]
[1761234932388,4.49391936,191.54,191.47,2.69]
[1761234932697,25.0408,191.64,191.44,2.69]
[1761234932698,2.75,191.51,191.44,2.69]
[1761234932899,1.74391936,191.5,191.44,2.69]
[1761234933100,1.74391936,191.5,191.44,7.39]
[1761234934902,4.49391936,191.5,191.44,7.39]
[1761234937195,2.75,191.5,191.46,2.69]
[1761234937603,4.6981,191.53,191.46,2.69]
[1761234937798,4.6981,191.53,191.47,7.3894]
[1761234938005,2.75,191.54,191.48,2.69]